Cogmind - Beta 12 X1 @@@ ROGUE MODE // 2022.08.05 @ 23:39:59 Player: Momo Result: Destroyed by Enhanced Grunt with Neutron Cannon Performance ------------- Evolutions (3) 1500 Regions Visited (13) 2600 Robots Destroyed (124) 620 Value Destroyed (4710) 4710 Prototype IDs (216) 4320 Alien Tech Used (0) 0 Bonus (6802) 6802 TOTAL SCORE: 20552 Bonus ------- High Alert Combat Kills 869 Follower Combat Kills 33 Entered Garrisons 600 Used RIF Installer 2000 Met Data Miner 300 Used Data Conduit 3000 Cogmind --------- Core Integrity 0/700 Matter 220/300 Energy 99/100 System Corruption 9% Temperature Cool (0) Movement Core (50) Location -7/Data Miner Parts ------- > --- POWER (1) -------- (None) > --- PROPULSION (2) --- (None) > --- UTILITY (6) ------ (None) > --- WEAPON (4) ------- (None) > --- INVENTORY (5) ---- Microactuators Makeshift Hacking Suite Authchip [Processor] Relay Coupler [Sentry] (24) Improved Remote Datajack Peak State ------------ > --- POWER ------------ Improved Deuterium Engine > --- PROPULSION ------- Armored Huge Wheel > --- UTILITY ---------- Medium Storage Unit Advanced Melee Analysis Suite Core Analyzer Microactuators Actuator Array Reactive Plating > --- WEAPON ----------- Improved Remote Datajack Scythe Great Axe Spear > --- INVENTORY -------- Advanced Melee Analysis Suite Force Booster Reaction Control System Makeshift Hacking Suite Relay Coupler [Sentry] Relay Coupler [Behemoth] Ion Burst Cannon Long-range Missile Launcher Heavy Flail [Rating: 53] Favorites ----------- Power Improved Deuterium Engine Engine Improved Deuterium Engine Power Core Micro Nuclear Core Reactor Particle Reactor Propulsion Armored Huge Wheel Treads Medium Treads Leg Aluminum Leg Wheel Armored Huge Wheel Hover Unit Gravmag System Flight Unit Improved Flight Unit Utility Core Analyzer Device Microactuators Storage Medium Storage Unit Processor Core Analyzer Hackware Hacking Suite Protection Reactive Plating Weapon Spear Energy Gun Medium Laser Energy Cannon Ion Burst Cannon Ballistic Gun Improved Assault Rifle Ballistic Cannon Flak Cannon Launcher Grenade Launcher Special Weapon Improved Remote Datajack Impact Weapon Flail Slashing Weapon Scythe Piercing Weapon Spear Build | -11 -10 -10 -9 -9 -9 -8 -8 -7 -7 -7 -7 -7 -7 ------- Run | Scr Mat Min Mat Sto Gar Mat Gar Fac Gar Fac Low Low Dat Slots Evolved 6 | . . . 2 . . 2 . 2 . . . . . Power . | . . . . . . . . . . . . . . Propulsion . | . . . . . . . . . . . . . . Utility 4 | . . . . . . 2 . 2 . . . . . Weapon 2 | . . . 2 . . . . . . . . . . Parts Attached 136 | 6 . 3 1 24 22 11 9 27 12 . 10 6 5 Power 13 | 1 . . . 2 3 . 1 4 1 . . 1 . Engine 10 | 1 . . . 2 2 . 1 2 1 . . 1 . Core 1 | . . . . . . . . 1 . . . . . Reactor 2 | . . . . . 1 . . 1 . . . . . Propulsion 24 | 2 . 2 . 5 5 4 2 3 . . . 1 . Treads 4 | . . . . . 2 2 . . . . . . . Leg 3 | . . . . 1 . . 2 . . . . . . Wheel 11 | 2 . 2 . 3 . . . 3 . . . 1 . Hover 5 | . . . . . 3 2 . . . . . . . Flight 1 | . . . . 1 . . . . . . . . . Utility 45 | 1 . . . 3 5 4 4 11 5 . 6 2 4 Device 17 | . . . . 1 3 1 2 4 1 . 3 . 2 Storage 2 | 1 . . . . . . . 1 . . . . . Processor 8 | . . . . . . 1 1 2 1 . 1 1 1 Hackware 4 | . . . . . . 1 1 1 1 . . . . Protection 14 | . . . . 2 2 1 . 3 2 . 2 1 1 Artifact . | . . . . . . . . . . . . . . Weapon 54 | 2 . 1 1 14 9 3 2 9 6 . 4 2 1 Energy Gun 3 | 2 . . . . 1 . . . . . . . . Energy Cannon 7 | . . . . 2 2 1 1 . . . 1 . . Ballistic Gun 5 | . . 1 . 2 1 1 . . . . . . . Ballistic Cannon 1 | . . . . . . . 1 . . . . . . Launcher 19 | . . . . 8 5 1 . . 3 . . 1 1 Special Weapon 3 | . . . 1 . . . . 1 . . 1 . . Impact Weapon 5 | . . . . . . . . 4 . . 1 . . Slashing Weapon 8 | . . . . 2 . . . 3 3 . . . . Piercing Weapon 3 | . . . . . . . . 1 . . 1 1 . Special Melee Weapon . | . . . . . . . . . . . . . . Unidentified Prototypes 7 | . . . . 6 . . . 1 . . . . . Parts Lost 42 | . 1 2 1 8 7 7 3 3 2 . . 2 6 Power 5 | . . . . 1 1 1 . . 1 . . . 1 Propulsion 13 | . 1 1 . 3 2 1 2 1 . . . 1 1 Utility 9 | . . . . . 1 3 . 2 . . . 1 2 Weapon 15 | . . 1 1 4 3 2 1 . 1 . . . 2 Highest Loss Streak 7 | . 1 3 1 2 3 7 2 2 2 . . 1 6 To Critical Strikes 1 | . . . . . . . . . 1 . . . . Average Slot Usage (%) 81 | . 83 61 66 77 84 78 48 86 83 76 91 87 81 Engine 7 | . 14 14 11 10 10 8 3 5 6 7 7 7 6 Leg 1 | . . . . 2 . . 8 2 . . . . . Wheel 8 | . 26 7 22 16 8 . . 9 7 7 7 6 6 Hover 3 | . . . . . 12 13 6 . . . . . . Device 8 | . . . . 1 6 4 11 11 7 7 8 15 16 Storage 7 | . 14 14 11 11 11 8 . 1 7 7 7 7 6 Processor 7 | . . . . . . 8 1 11 15 15 15 10 9 Hackware 3 | . . . . . . 3 7 8 7 7 5 . . Protection 4 | . . . . 1 4 7 . 3 7 7 7 7 4 Energy Gun 1 | . 28 14 11 . 2 . . . . . . . . Energy Cannon 2 | . . . . 6 8 4 7 . . . 1 . . Ballistic Gun 4 | . . 11 11 8 13 13 . . . . . . . Launcher 2 | . . . . 15 6 1 . . . . . . . Impact Weapon 4 | . . . . . . . . 18 . . 1 7 6 Slashing Weapon 7 | . . . . 3 . . . 1 22 15 15 15 14 Piercing Weapon 2 | . . . . . . . . 6 . . 6 6 6 Naked Turns 9 | . . . . . . 7 . . . . . . 2 Heaviest Build 49 | 14 14 14 13 30 37 36 20 47 49 38 48 48 48 Greatest Support 48 | 26 26 20 20 26 26 48 20 28 28 28 28 28 10 Greatest Overweight (x) 15 | . . 4 . 2 6 1 2 2 1 1 1 15 4 Average Overweight (x) 1 | . . 1 . . 1 . . 1 1 1 1 1 3 Largest Inventory Capacity 10 | 8 8 8 8 8 8 8 5 10 10 10 10 10 10 Average Capacity 8 | 7 8 8 8 8 8 7 5 6 10 10 10 10 9 Most Carried 10 | . 1 3 3 8 8 8 5 10 10 10 10 10 10 Average Carried 7 | . . 1 2 6 6 6 4 5 10 10 9 10 9 Final Capacity 10 | 8 8 8 8 8 8 5 5 10 10 10 10 10 5 Final Carried 10 | . 1 3 2 8 7 5 5 10 10 10 10 10 5 Class Distribution -------------------- 73% | Mutant 14% | Scavenger-Mutant 7% | Gladiator Dominant Class ---------------- Mutant | -10/Materials Mutant | -10/Mines Mutant | -9/Materials Mutant | -9/Storage Mutant | -9/Garrison Mutant | -8/Materials Mutant | -8/Garrison Mutant | -7/Factory Gladiator | -7/Garrison Scavenger-Mutant | -7/Factory Mutant | -7/Lower Caves Mutant | -7/Lower Caves Mutant | -7/Data Miner Resources | -11 -10 -10 -9 -9 -9 -8 -8 -7 -7 -7 -7 -7 -7 ----------- Run | Scr Mat Min Mat Sto Gar Mat Gar Fac Gar Fac Low Low Dat Matter Collected 2523 | 260 . 31 . 430 552 177 176 386 245 . 125 141 . Remotely . | . . . . . . . . . . . . . . Salvage Created 4671 | . 90 45 56 756 1195 471 176 681 954 . 107 140 . Parts 278 | . 4 2 4 59 77 31 12 35 42 . 2 10 . Haulers Intercepted 2 | . . . . 1 . . . 1 . . . . . Recyclers Shooed 2 | . . . . . . 2 . . . . . . . Parts Field Recycled . | . . . . . . . . . . . . . . Retrieved Matter . | . . . . . . . . . . . . . . Parts Self-Destructed 4 | . . . . . . . . . . . 2 2 . Prevented 2 | . . . . . . . . . . . . 2 . Kills | -11 -10 -10 -9 -9 -9 -8 -8 -7 -7 -7 -7 -7 -7 ------- Run | Scr Mat Min Mat Sto Gar Mat Gar Fac Gar Fac Low Low Dat Combat Hostiles Destroyed 105 | . 2 3 1 17 33 10 6 9 17 . 1 6 . Melee 20 | . . . . . . . . 7 10 . 1 2 . Guns 19 | . 2 3 1 1 7 5 . . . . . . . Cannons 24 | . . . . 6 12 . 6 . . . . . . AOE 39 | . . . . 10 14 5 . . 6 . . 4 . Classes Destroyed 16 | . 1 1 1 5 1 2 2 2 . . . 1 . Worker 5 | . . . . 2 . . . 3 . . . . . Builder 3 | . . . . . . 1 . 2 . . . . . Tunneler 1 | . . . . . . . . 1 . . . . . Hauler 2 | . . . . 1 . . . 1 . . . . . Recycler 3 | . . . . 2 . . . 1 . . . . . Mechanic 1 | . . . . . . 1 . . . . . . . Operator 3 | . . . . 1 . 2 . . . . . . . Watcher 1 | . . . . 1 . . . . . . . . . Swarmer 26 | . . 3 . 4 11 4 . . . . . 4 . Grunt 45 | . 2 . . 7 14 4 2 4 12 . . . . Brawler 2 | . . . . . . . 1 . 1 . . . . Duelist 4 | . . . . . . . 1 . 3 . . . . Sentry 20 | . . . 1 6 4 2 2 3 1 . 1 . . Hunter 1 | . . . . . . . . 1 . . . . . Programmer 6 | . . . . . 4 . . 1 . . . 1 . Packrat 1 | . . . . . . . . . . . 1 . . Mutant 1 | . . . . . . . . . . . . 1 . Best Kill Streak 12 | . 2 3 1 12 7 8 3 4 5 . 1 4 . Combat Bots Only 9 | . 2 3 1 9 7 6 3 2 5 . 1 4 . Max Kills in Single Turn 5 | . 1 1 1 5 2 4 1 1 2 . 1 3 . Gunslinging . | . . . . . . . . . . . . . . Exploded 4 | . . . . 4 2 4 . . 2 . . 3 . Melee 1 | . . . . . . . . 1 1 . 1 1 . Uniques/NPCs Destroyed . | . . . . . . . . . . . . . . Combat | -11 -10 -10 -9 -9 -9 -8 -8 -7 -7 -7 -7 -7 -7 -------- Run | Scr Mat Min Mat Sto Gar Mat Gar Fac Gar Fac Low Low Dat Damage Taken 6105 | . 174 162 230 515 1056 972 379 811 904 31 126 231 514 Core 1480 | . 40 87 44 86 197 257 65 188 256 16 41 26 177 Absorbed by Shields 240 | . . . . . . . . 212 28 . . . . Regen/Repaired (Parts) 153 | . . . . . . 153 . . . . . . . Core Remaining (%) 52 | 100 . 49 . . 18 . 41 . . . . . . Volleys Fired 204 | . 7 16 6 29 68 35 24 3 9 . 1 2 4 Largest 4 | . 2 1 2 3 4 3 1 1 1 . 1 1 1 Hottest 227 | . 90 50 100 114 227 158 100 7 39 . 100 43 43 Shots Fired 339 | . 14 16 10 62 133 59 24 3 9 . 3 2 4 Gun 186 | . 14 16 8 25 71 52 . . . . . . . Cannon 98 | . . . . 23 45 3 24 . . . 3 . . Launcher 50 | . . . . 14 17 4 . . 9 . . 2 4 Special 5 | . . . 2 . . . . 3 . . . . . Kinetic 151 | . . . 4 25 55 52 15 . . . . . . Thermal 128 | . 7 16 6 23 61 3 9 . . . 3 . . Explosive 20 | . . . . 14 . . . . . . . 2 4 Electromagnetic 37 | . 7 . . . 17 4 . . 9 . . . . Robot Hit Streak 13 | . 5 5 7 11 11 13 11 2 2 . 3 5 9 Robot Miss Streak 8 | . 1 2 1 5 4 2 8 1 1 . 1 . . Penetration Max . | . . . . . . . . . . . . . . Secondary Targets 1 | . . . . . . 1 . . . . . . . Max Gunslinging Chain 1 | . . . . . . 1 . . . . . . . Shots Hit Robots 315 | . 10 9 7 32 81 39 20 60 32 . 3 16 6 Core Hits 206 | . 3 3 3 41 49 23 17 18 27 . 3 8 11 Critical Kills 1 | . . . . . . . . 1 . . . . . Critical Parts Destroyed 3 | . . . . . . . . 2 . . . 1 . Critical Strikes 16 | . 1 1 . . 1 . . 5 6 . 1 1 . Burn 3 | . 1 1 . . 1 . . . . . . . . Smash 4 | . . . . . . . . 3 . . . 1 . Sever 6 | . . . . . . . . . 6 . . . . Impale 3 | . . . . . . . . 2 . . 1 . . Melee Attacks 168 | . . . . 1 . . . 89 38 . 2 36 2 Impact 44 | . . . . . . . . 36 . . . 7 1 Slashing 51 | . . . . 1 . . . . 38 . 1 11 . Piercing 73 | . . . . . . . . 53 . . 1 18 1 Sneak Attacks 11 | . . . . . . . . 9 . . . . 2 Combat Hostiles . | . . . . . . . . . . . . . . Follow-up Attacks 42 | . . . . . . . . 25 8 . . 8 1 Damage Inflicted 11559 | . 129 128 81 1188 2684 1196 557 2098 1791 . 92 752 863 Guns 2229 | . 129 128 75 224 906 767 . . . . . . . Cannons 1959 | . . . . 312 986 41 557 . . . 63 . . Explosions 3621 | . . . . 652 792 388 . . 717 . . 273 799 Melee 3744 | . . . . . . . . 2098 1074 . 29 479 64 Ramming 6 | . . . 6 . . . . . . . . . . Kinetic 2008 | . . . 25 224 622 767 370 . . . . . . Thermal 2371 | . 64 128 50 312 1415 77 187 . 75 . 63 . . Explosive 1724 | . . . . 652 . . . . . . . 273 799 Electromagnetic 1706 | . 65 . . . 647 352 . . 642 . . . . Impact 718 | . . . . . . . . 585 . . . 133 . Slashing 1220 | . . . . . . . . . 1074 . . 146 . Piercing 1806 | . . . . . . . . 1513 . . 29 200 64 Highest Corruption 9 | . 4 4 . . 6 2 4 7 8 9 9 9 9 Average Corruption 6 | . 3 4 . . 5 2 3 5 7 8 9 9 9 Corruption Purged . | . . . . . . . . . . . . . . Corruption Blocked . | . . . . . . . . . . . . . . Effects 112 | . . 4 . . 17 1 2 21 18 1 16 25 7 Message Errors 38 | . . 2 . . 6 . 1 8 9 . 3 7 2 Matter Fused 21 | . . 1 . . 2 1 . 5 . . 3 9 . Heat Flow Errors 14 | . . . . . 2 . 1 1 2 . 2 5 1 Energy Discharges 14 | . . . . . 2 . . 3 2 . 3 2 2 Parts Rejected 2 | . . . . . . . . . 1 . . . 1 Data Loss (minor) 13 | . . . . . 4 . . 2 4 . 2 . 1 Data Loss (major) 5 | . . . . . . . . 2 . 1 1 1 . Misfires 2 | . . . . . . . . . . . 2 . . Alerts 3 | . . 1 . . 1 . . . . . . 1 . Overload Shots . | . . . . . . . . . . . . . . Overflow Damage 492 | . . . . 1 12 17 . 352 28 . . 78 4 Projectiles . | . . . . . . . . . . . . . . Explosions 51 | . . . . 1 12 17 . . 20 . . 1 . Melee 441 | . . . . . . . . 352 8 . . 77 4 Knockbacks 11 | . . . 1 . . . 7 3 . . . . . Impact 4 | . . . 1 . . . . 3 . . . . . Kinetic 7 | . . . . . . . 7 . . . . . . Secondary . | . . . . . . . . . . . . . . Self-Inflicted Damage 81 | . . . 3 25 9 . . . 10 . . 34 . Shots 4 | . . . . 1 1 . . . 1 . . 1 . Rammed 1 | . . . 1 . . . . . . . . . . Targets Rammed 1 | . . . 1 . . . . . . . . . . Kicked . | . . . . . . . . . . . . . . Crushed . | . . . . . . . . . . . . . . Highest Temperature 390 | . 264 160 77 123 390 139 171 179 248 . 368 261 180 Average Temperature 100 | . 134 82 34 32 139 71 34 91 83 . 115 107 99 Received Heat Transfer 1727 | . 93 . 108 171 237 405 126 159 336 . 12 80 . Siege Activations . | . . . . . . . . . . . . . . Robots Corrupted 1 | . . . . . . . . . 1 . . . . Combat Hostiles 1 | . . . . . . . . . 1 . . . . Parts Fried 8 | . . . . . 3 1 . 2 2 . . . . Impact Corruptions 8 | . . . . . . . . 6 . . . 2 . Robots Melted . | . . . . . . . . . . . . . . Combat Hostiles . | . . . . . . . . . . . . . . Parts Melted 4 | . 1 2 . . 1 . . . . . . . . Heat Transferred 3890 | . 259 444 148 555 1984 100 225 . 100 . 75 . . Parts Sabotaged . | . . . . . . . . . . . . . . Parts Stolen . | . . . . . . . . . . . . . . Parts Stripped . | . . . . . . . . . . . . . . Power Chain Reactions 8 | . . . . . 5 1 . . 2 . . . . Missiles Intercepted . | . . . . . . . . . . . . . . Alert | -11 -10 -10 -9 -9 -9 -8 -8 -7 -7 -7 -7 -7 -7 ------- Run | Scr Mat Min Mat Sto Gar Mat Gar Fac Gar Fac Low Low Dat Peak Influence 1189 | . 60 69 99 799 1189 915 659 393 490 252 . . . Initial 579 | . . 19 11 37 416 579 449 345 59 252 . . . Average 452 | . 28 61 55 411 846 659 572 295 252 252 . . . Maximum Alert Level 4 | . . . . 3 4 3 2 1 2 1 . . . Low Security (%) 22 | 100 100 100 100 19 . . . 17 41 . . . . Level 1 30 | . . . . 40 . . . 82 43 100 . . . Level 2 25 | . . . . 18 23 72 100 . 15 . . . . Level 3 19 | . . . . 21 66 27 . . . . . . . Level 4 2 | . . . . . 10 . . . . . . . . Level 5 . | . . . . . . . . . . . . . . High Security . | . . . . . . . . . . . . . . Max Security . | . . . . . . . . . . . . . . Squads Dispatched 9 | . . . . 3 . 5 . 1 . . . . . Investigation 2 | . . . . . . 2 . . . . . . . Extermination . | . . . . . . . . . . . . . . Reinforcement 4 | . . . . 3 . 1 . . . . . . . Assault 2 | . . . . . . 1 . 1 . . . . . Garrison 1 | . . . . . . 1 . . . . . . . Intercept . | . . . . . . . . . . . . . . Searches Triggered . | . . . . . . . . . . . . . . Construction Impeded . | . . . . . . . . . . . . . . Haulers Reinforced . | . . . . . . . . . . . . . . Active Scanning Responses . | . . . . . . . . . . . . . . Cargo Convoy Interrupts . | . . . . . . . . . . . . . . Stealth | -11 -10 -10 -9 -9 -9 -8 -8 -7 -7 -7 -7 -7 -7 --------- Run | Scr Mat Min Mat Sto Gar Mat Gar Fac Gar Fac Low Low Dat Distress Signals 5 | . 1 . . 1 . 2 . . 1 . . . . Communications Jammed . | . . . . . . . . . . . . . . Distress Signals . | . . . . . . . . . . . . . . Times Spotted 156 | . 10 6 8 27 25 25 6 15 23 1 1 5 4 Peak Tracking Total 14 | . 7 3 7 14 5 7 2 5 6 1 1 2 4 Tactical Retreats 6 | . . . . 2 1 . . . 3 . . . . Traps | -11 -10 -10 -9 -9 -9 -8 -8 -7 -7 -7 -7 -7 -7 ------- Run | Scr Mat Min Mat Sto Gar Mat Gar Fac Gar Fac Low Low Dat Traps Triggered 20 | . 2 . . . 5 1 4 3 4 . 1 . . Indirectly 4 | . . . . . 3 1 . . . . . . . Trap Hack Attempts . | . . . . . . . . . . . . . . Triggered . | . . . . . . . . . . . . . . Disarmed . | . . . . . . . . . . . . . . Reprogrammed . | . . . . . . . . . . . . . . Reused . | . . . . . . . . . . . . . . Traps Extracted . | . . . . . . . . . . . . . . Installed . | . . . . . . . . . . . . . . Triggered . | . . . . . . . . . . . . . . Machines | -11 -10 -10 -9 -9 -9 -8 -8 -7 -7 -7 -7 -7 -7 ---------- Run | Scr Mat Min Mat Sto Gar Mat Gar Fac Gar Fac Low Low Dat Machines Disabled 16 | . . . . 5 4 2 2 1 1 . . 1 . Max in Single Turn 2 | . . . . 2 1 1 1 1 1 . . 1 . Garrison Access 1 | . . . . . . . . 1 . . . . . Garrison Relay 3 | . . . . . . . 2 . 1 . . . . Machines Sabotaged . | . . . . . . . . . . . . . . Garrisons Compromised . | . . . . . . . . . . . . . . Overloaded Fab Kills . | . . . . . . . . . . . . . . Hacking | -11 -10 -10 -9 -9 -9 -8 -8 -7 -7 -7 -7 -7 -7 --------- Run | Scr Mat Min Mat Sto Gar Mat Gar Fac Gar Fac Low Low Dat Machines Accessed 33 | . 2 . 1 5 2 2 2 9 2 . 3 1 4 Terminals 17 | . 2 . 1 4 2 . 2 4 2 . . . . Fabricators . | . . . . . . . . . . . . . . Repair Stations 2 | . . . . . . 1 . 1 . . . . . Recycling Units . | . . . . . . . . . . . . . . Scanalyzers 1 | . . . . . . . . 1 . . . . . Garrison Access 5 | . . . . 1 . 1 . 3 . . . . . Total Hacks 102 | . 7 . 8 8 5 5 3 24 4 . 6 1 31 Successful 73 | . 5 . 5 4 2 4 1 12 2 . 6 1 31 Failed 29 | . 2 . 3 4 3 1 2 12 2 . . . . Catastrophic 4 | . . . . 1 1 . . 2 . . . . . Database Lockouts . | . . . . . . . . . . . . . . Manual 17 | . 1 . . 1 . 1 . 14 . . . . . Terminals 45 | . 7 . 8 7 5 . 3 11 4 . . . . Fabricators . | . . . . . . . . . . . . . . Repair Stations 5 | . . . . . . 3 . 2 . . . . . Recycling Units . | . . . . . . . . . . . . . . Scanalyzers 4 | . . . . . . . . 4 . . . . . Garrison Access 10 | . . . . 1 . 2 . 7 . . . . . Terminal Hacks 57 | . 4 . 5 3 2 . 1 2 2 . 6 1 31 Record 18 | . . . 3 . . . . . . . 4 . 11 Part Schematic 12 | . . . . . . . . . . . . . 12 Robot Schematic 5 | . . . . . . . . . . . . . 5 Robot Analysis 1 | . 1 . . . . . . . . . . . . Prototype ID Bank 4 | . . . 1 . . . . . . . . . 3 Open Door 5 | . . . . 2 . . . . . . 2 1 . Branch Access Points 1 | . . . . . . . . 1 . . . . . Emergency Access Points 2 | . . . . . 1 . . . 1 . . . . Unreport Threat 1 | . . . . . . . . 1 . . . . . Locate Traps 1 | . 1 . . . . . . . . . . . . Recall Reinforcements 1 | . . . . 1 . . . . . . . . . Registered Components 1 | . 1 . . . . . . . . . . . . Zone Layout 2 | . 1 . 1 . . . . . . . . . . Garrison Registry 1 | . . . . . 1 . . . . . . . . Patrol Navigation 2 | . . . . . . . 1 . 1 . . . . Fabricator Hacks . | . . . . . . . . . . . . . . Repair Station Hacks 2 | . . . . . . 2 . . . . . . . Scan Component 1 | . . . . . . 1 . . . . . . . Repair 1 | . . . . . . 1 . . . . . . . Recycling Unit Hacks . | . . . . . . . . . . . . . . Scanalyzer 2 | . . . . . . . . 2 . . . . . Insert Component 1 | . . . . . . . . 1 . . . . . Analyze 1 | . . . . . . . . 1 . . . . . Garrison Access Hacks 5 | . . . . 1 . 1 . 3 . . . . . Unlock Access 5 | . . . . 1 . 1 . 3 . . . . . Unauthorized Hacks 7 | . 1 . . . . 1 . 5 . . . . . Terminals 4 | . 1 . . . . . . 3 . . . . . Botnet 3 | . 1 . . . . . . 2 . . . . . Operators 1 | . . . . . . . . 1 . . . . . Fabricators . | . . . . . . . . . . . . . . Repair Stations . | . . . . . . . . . . . . . . Recycling Units . | . . . . . . . . . . . . . . Scanalyzers . | . . . . . . . . . . . . . . Garrison Access 3 | . . . . . . 1 . 2 . . . . . Restock 1 | . . . . . . . . 1 . . . . . Reprogram 2 | . . . . . . 1 . 1 . . . . . Data Cores Recovered . | . . . . . . . . . . . . . . Used . | . . . . . . . . . . . . . . Hacking Detections 16 | . 1 . 1 2 2 1 1 6 2 . . . . Full Trace Events 2 | . . . . 1 . . 1 . . . . . . Feedback Events . | . . . . . . . . . . . . . . Feedback Blocked . | . . . . . . . . . . . . . . Robot Schematics Acquired 5 | . . . . . . . . . . . . . 5 Robots Built . | . . . . . . . . . . . . . . Authchips . | . . . . . . . . . . . . . . Time . | . . . . . . . . . . . . . . Total Robot Build Rating . | . . . . . . . . . . . . . . Part Schematics Acquired 13 | . . . . . . . . 1 . . . . 12 Parts Built . | . . . . . . . . . . . . . . Authchips . | . . . . . . . . . . . . . . Time . | . . . . . . . . . . . . . . Total Part Build Rating . | . . . . . . . . . . . . . . Parts Repaired 1 | . . . . . . 1 . . . . . . . Time 80 | . . . . . . 80 . . . . . . . Parts Recycled . | . . . . . . . . . . . . . . Recycled Matter . | . . . . . . . . . . . . . . Retrieved Matter . | . . . . . . . . . . . . . . Retrieved Components . | . . . . . . . . . . . . . . Parts Scanalyzed 1 | . . . . . . . . 1 . . . . . Part Schematics Acquired 1 | . . . . . . . . 1 . . . . . Parts Damaged . | . . . . . . . . . . . . . . Bothacking | -11 -10 -10 -9 -9 -9 -8 -8 -7 -7 -7 -7 -7 -7 ------------ Run | Scr Mat Min Mat Sto Gar Mat Gar Fac Gar Fac Low Low Dat Used RIF Installer 4 | . . . . . 2 . 1 . 1 . . . . Threat Obfuscator 1 | . . . . . . . 1 . . . . . . Watcher Feeds 1 | . . . . . 1 . . . . . . . . Alert ID Control 1 | . . . . . . . . . 1 . . . . Robots Hacked 2 | . . . . . . . . 2 . . . . . Non-combat . | . . . . . . . . . . . . . . Combat 2 | . . . . . . . . 2 . . . . . Robot Hacks Applied 2 | . . . . . . . . 2 . . . . . overwrite_iff 2 | . . . . . . . . 2 . . . . . Relay Couplers Released 21 | . . . . . 3 . 8 5 5 . . . . Machine Destruction 14 | . . . . . . . 8 1 5 . . . . Programmers 7 | . . . . . 3 . . 4 . . . . . Attached 2 | . . . . . . . . 1 1 . . . . Fabnet Peak Effective % . | . . . . . . . . . . . . . . Robots Rewired . | . . . . . . . . . . . . . . Allies Hacked . | . . . . . . . . . . . . . . Hacks Repelled . | . . . . . . . . . . . . . . Allies | -11 -10 -10 -9 -9 -9 -8 -8 -7 -7 -7 -7 -7 -7 -------- Run | Scr Mat Min Mat Sto Gar Mat Gar Fac Gar Fac Low Low Dat Total Allies 6 | . . 2 . . . 1 . 2 . . . 1 . Largest Group 2 | . . 2 . . . 1 . 1 . . . 1 . Highest-Rated Group 106 | . . 38 . . . 21 . 29 . . . 106 . Highest-Rated Ally 106 | . . 31 . . . 21 . 29 . . . 106 . Total Orders . | . . . . . . . . . . . . . . Ally Attacks 14 | . . 1 . . . 7 . 6 . . . . . Total Damage 245 | . . 22 . . . 138 . 85 . . . . . Kills 1 | . . . . . . 1 . . . . . . . Allies Corrupted . | . . . . . . . . . . . . . . Allies Melted . | . . . . . . . . . . . . . . Intel | -11 -10 -10 -9 -9 -9 -8 -8 -7 -7 -7 -7 -7 -7 ------- Run | Scr Mat Min Mat Sto Gar Mat Gar Fac Gar Fac Low Low Dat Robot Analysis Total 132 | . 1 . . . . . . . . . . . 131 Derelict Logs Recovered 2 | . . . . . . . . . . . 1 1 . Drone Launches . | . . . . . . . . . . . . . . Drone Recoveries . | . . . . . . . . . . . . . . Exploration | -11 -10 -10 -9 -9 -9 -8 -8 -7 -7 -7 -7 -7 -7 ------------- Run | Scr Mat Min Mat Sto Gar Mat Gar Fac Gar Fac Low Low Dat Turns Passed 5660 | 35 117 208 61 462 856 428 340 934 609 34 580 830 166 Spaces Moved 3934 | 30 103 102 50 334 526 242 251 635 400 30 480 643 108 Core 76 | 1 . 50 . . 1 15 3 . . . . 2 4 Treads 13 | . . . . . . 13 . . . . . . . Legs 187 | . . . . . . . 120 67 . . . . . Wheels 2995 | 29 103 52 50 334 204 . . 568 400 30 480 641 104 Hover 663 | . . . . . 321 214 128 . . . . . . Flight . | . . . . . . . . . . . . . . Fastest Speed 50 | 50 90 80 80 80 56 50 56 100 115 115 115 115 50 Average Speed 112 | 88 90 162 80 94 112 112 99 109 115 115 115 119 136 Slowest Speed 800 | 90 100 250 80 110 350 160 150 190 115 115 115 800 140 Overloaded Moves . | . . . . . . . . . . . . . . Propulsion Burnouts . | . . . . . . . . . . . . . . Robots Hopped . | . . . . . . . . . . . . . . Cave-ins Triggered . | . . . . . . . . . . . . . . Exploration Rate (%) 38 | 5 32 30 6 62 64 21 34 23 53 1 63 65 76 Regions Visited 13 Branch Regions 5 Pre-discovered Areas 26 | . . . . . . . . . . . . 1 25 Known Exits Taken 4 | . . . . 1 . 1 . 1 . 1 . . . Unknown Exits Taken 6 | 1 1 1 1 . . . . . . . 1 1 . Scrap Searched 8 | . . 1 . . . . . . . . 6 1 . Spaces Dug 15 | . . . 2 . . 4 . . 1 . . 8 . Terrain Destroyed 175 | . . . 2 82 . 19 . . 8 . . 42 22 Melee 9 | . . . . . . . . . 1 . . 8 . Projectile 21 | . . . 2 . . 19 . . . . . . . AOE 145 | . . . . 82 . . . . 7 . . 34 22 Terrain Rammed . | . . . . . . . . . . . . . . Walls Destroyed . | . . . . . . . . . . . . . . Machines Disabled . | . . . . . . . . . . . . . . Actions | -11 -10 -10 -9 -9 -9 -8 -8 -7 -7 -7 -7 -7 -7 --------- Run | Scr Mat Min Mat Sto Gar Mat Gar Fac Gar Fac Low Low Dat Total 4664 | 35 112 126 57 414 670 337 312 778 494 29 503 679 118 Wait 134 | . 2 4 . 3 18 43 9 32 15 . . 8 . Move 3923 | 29 102 101 49 334 525 241 250 635 399 29 479 642 108 Hop . | . . . . . . . . . . . . . . Pick Up 41 | . 1 2 . 10 3 3 7 9 . . 6 . . Fast Attach 81 | 6 . 3 . 17 14 6 3 23 4 . 2 3 . Attach 27 | . . . 1 4 6 4 6 1 . . 3 . 2 Detach 8 | . . . . 1 6 1 . . . . . . . Swap 28 | . . . . 3 2 1 . 3 8 . 5 3 3 Drop 58 | . . . . 12 12 3 1 19 2 . 6 3 . Fire 204 | . 7 16 6 29 68 35 24 3 9 . 1 2 4 Melee 99 | . . . . 1 . . . 53 25 . 1 18 1 Ram 1 | . . . 1 . . . . . . . . . . Kick . | . . . . . . . . . . . . . . Crush . | . . . . . . . . . . . . . . Escape Stasis 60 | . . . . . 16 . 12 . 32 . . . . Rewire . | . . . . . . . . . . . . . . Trap . | . . . . . . . . . . . . . . Miscellaneous . | . . . . . . . . . . . . . . Route ------- -11/Scrapyard -10/Materials -10/Mines (discovered 2 exits: *Mat x2) -9/Materials -9/Storage -9/Garrison (discovered 3 exits: *Mat x3) -8/Materials -8/Garrison -7/Factory (discovered 4 exits: *Low x2 / Gar / Gar) -7/Garrison (discovered 3 exits: [*Fac x2] / [*Fac]) -7/Factory -7/Lower Caves -7/Lower Caves (discovered 2 exits: *Dat / [*Fac]) -7/Data Miner (discovered 1 exit: [*Pro]) History --------- Turn | Location | Event 15 | -11/Scrapyard | Discovered new exit (range 16) 36 | -11/Scrapyard | Entered Materials 139 | -10/Materials | Discovered new exit (range 7) 153 | -10/Materials | Entered Mines 187 | -10/Mines | Core integrity fell below 50% 210 | -10/Mines | Lost 3 parts (2n1w) 311 | -10/Mines | Build established: Mutant 341 | -10/Mines | Discovered new exit (range 10) 349 | -10/Mines | Discovered new exit (range 10) 352 | -10/Mines | Assembled infested the area 361 | -10/Mines | Entered Materials 361 | -9/Materials | Evolved 2 slots: Weapon x2 406 | -9/Materials | Discovered new exit (range 11) 422 | -9/Materials | Entered Storage 745 | -9/Storage | Destroyed 9 combat bots 884 | -9/Storage | Identified exit to Garrison 884 | -9/Storage | Entered Garrison 954 | -9/Garrison | Triggered checkpoint 996 | -9/Garrison | Discovered new exit (range 44) 996 | -9/Garrison | Discovered new exit (range 78) 996 | -9/Garrison | Discovered new exit (range 73) 1050 | -9/Garrison | Triggered checkpoint 1063 | -9/Garrison | Triggered checkpoint 1110 | -9/Garrison | Destroyed 7 combat bots 1156 | -9/Garrison | Triggered checkpoint 1161 | -9/Garrison | Core integrity fell below 50% 1267 | -9/Garrison | Lost 3 parts (2n1u) 1278 | -9/Garrison | Installed Relay Interface Framework 1341 | -9/Garrison | Triggered checkpoint 1372 | -9/Garrison | Triggered checkpoint 1421 | -9/Garrison | Triggered checkpoint 1648 | -9/Garrison | Triggered checkpoint 1664 | -9/Garrison | Core integrity fell below 20% 1698 | -9/Garrison | Expanded RIF knowledge: Watcher Feeds 1699 | -9/Garrison | Lost 3 parts (1p2w) 1740 | -9/Garrison | Entered Materials 1740 | -8/Materials | Evolved 2 slots: Utility x2 1892 | -8/Materials | Repaired Ion Burst Cannon 1958 | -8/Materials | Identified exit to Garrison 2123 | -8/Materials | Garrison activated, responded to threat 2140 | -8/Materials | First assault squad dispatched 2153 | -8/Materials | Released all parts (3) 2168 | -8/Materials | Entered Garrison 2180 | -8/Garrison | Lost 7 parts (1p1n3u2w) 2248 | -8/Garrison | Core integrity fell below 50% 2276 | -8/Garrison | Expanded RIF knowledge: Threat Obfuscation 2292 | -8/Garrison | Garrison Relay disabled 2322 | -8/Garrison | Triggered checkpoint 2412 | -8/Garrison | Triggered checkpoint 2435 | -8/Garrison | Garrison Relay disabled 2463 | -8/Garrison | Discovered new exit (range 10) 2508 | -8/Garrison | Entered Factory 2508 | -7/Factory | Evolved 2 slots: Utility x2 2647 | -7/Factory | Identified exit to Garrison 2904 | -7/Factory | Identified exit to Garrison 3007 | -7/Factory | Discovered new exit (range 10) 3332 | -7/Factory | Identified exit to Lower Caves 3442 | -7/Factory | Identified exit to Garrison 3442 | -7/Factory | Entered Garrison 3626 | -7/Garrison | Triggered checkpoint 3640 | -7/Garrison | Triggered checkpoint 3716 | -7/Garrison | Build established: Gladiator 3760 | -7/Garrison | Discovered new exit (range 8) 3822 | -7/Garrison | Triggered checkpoint 3840 | -7/Garrison | Garrison Relay disabled 3983 | -7/Garrison | Expanded RIF knowledge: Alert ID Control 3991 | -7/Garrison | Discovered new exit (range 14) 4002 | -7/Garrison | Triggered checkpoint 4002 | -7/Garrison | Core integrity fell below 50% 4045 | -7/Garrison | Discovered new exit (range 6) 4051 | -7/Garrison | Entered Factory 4058 | -7/Factory | Discovered exit to Lower Caves (range 11) 4085 | -7/Factory | Entered Lower Caves 4200 | -7/Lower Caves | Learned 4 Factory zone layouts 4215 | -7/Lower Caves | Encountered a Warlord checkpoint 4386 | -7/Lower Caves | Learned location of 1 exit from Factory 4386 | -7/Lower Caves | Learned Extension security intel 4386 | -7/Lower Caves | Learned Factory garrison access intel 4577 | -7/Lower Caves | Attracted the attention of an 0b10 checkpoint 4650 | -7/Lower Caves | Discovered new exit (range 5) 4665 | -7/Lower Caves | Entered another Lower Caves area 4669 | -7/Lower Caves | Learned location of Zion (-6) 4718 | -7/Lower Caves | Build established: Mutant 5065 | -7/Lower Caves | Attacked by a delusional Derelict stockpiling parts 5132 | -7/Lower Caves | 12-ASH showed up to help 5134 | -7/Lower Caves | 12-ASH revealed a hidden path 5269 | -7/Lower Caves | Encountered a Warlord checkpoint 5366 | -7/Lower Caves | Discovered new exit (range 13) 5495 | -7/Lower Caves | Entered Data Miner 5495 | -7/Data Miner | Discovered new exit (range 6) 5522 | -7/Data Miner | Met Data Miner 5554 | -7/Data Miner | Learned location of Section 7 (-3) 5554 | -7/Data Miner | Acquired the access code to Warlord's prototype stash 5582 | -7/Data Miner | Received God Mode back door access code from Data Miner 5644 | -7/Data Miner | Interfaced with the Data Conduit 5653 | -7/Data Miner | Core integrity fell below 20% 5659 | -7/Data Miner | Released all parts (6) 5661 | -7/Data Miner | Destroyed by Enhanced Grunt with Neutron Cannon Last Messages --------------- 05644_ Interfacing with system... Downloaded 131 analysis records. Downloaded 719 prototype IDs. Downloaded central machine database. Downloaded 24 destinations. Downloaded encryption format records. Connection remotely terminated. 05649_ System corrupted: Force Booster rejected. 05652_ Great Axe destroyed. 05654_ Reaction Control System destroyed. 05656_ Imp. Deuterium Engine destroyed. 05656_ Reactive Plating destroyed. 05658_ Wheel destroyed. 05658_ Lrn. Missile Launcher destroyed. 05659_ Released Core Analyzer. 05659_ Released Med. Storage Unit. 05659_ Released Scythe. 05659_ Released Adv. Melee Analysis Suite. 05659_ Released Actuator Array. 05659_ Released Hvy. Flail. Map ----- +----------------------------------------------------+ | | | | | | | | | | | | | | | | | | | | | ???????????????????????????????????????? | | ???????????????????????????????????????? | | ???????????????????????????????????????? | | ??????????????????????####?????????????? | | ?????????????????????# ##??????????### | | ??????############## ????????### | | ?????""""""""""""""" ??????## | | ????""""""""" """ ####### < # | | ????"""""""" g | | ????"""""" g | | ???"""""" !!/ g | | ???"""""" /!] g | | ???"""""""/! | | ????"""""" " """""""""""" | | ????""""""" """"############## | | ????""""""" @ " """###????????????? | | ?????"""""""" "#####??????????????? | | ??????######"#; "#??????????????????? | | ???????????#"### "#??????????????????? | | ???????????#"### "#??????????????????? | | ???????????#"## "#??????????????????? | | ????????????"## "#??????????????????? | | ?????????????# "#??????????????????? | | ?????????????### "#??????????????????? | | ???????????????# "##?????????????????? | | ??????????????## ""#?????????????????? | | ???????????#?## ""#?????????????????? | | ?????????"##"#"X ""#?????????????????? | | ?????????"""""" "####??????????????? | | ?????????#""""" X"""""??????????????? | | ?????????###"#"X "##"#??????????????? | | ???????????#?## X""""#??????????????? | | ??????????????## "##"#??????????????? | | ???????????????#######?????????????????? | | ???????????????????????????????????????? | | ???????????????????????????????????????? | | ???????????????????????????????????????? | | ???????????????????????????????????????? | | ???????????????????????????????????????? | | ???????????????????????????????????????? | +----------------------------------------------------+ Best States ------------- Heat Dissipation 64 Energy Generation 23 Energy Capacity 340 Matter Stores 300 Matter Capacity 300 Sight Range 16 Terrain Scan Density 10 Armor Coverage 225 Resistance: KI 20 Melee Speed Boost 20 Evasion (%) 55 Targeting Accuracy 6 Melee Accuracy 10 Core Analysis 6 Recoil Reduction 2 Force Boost 20 Offensive Hacking 10 Relay Coupler Types 1 Relay Coupler Value 28 Authchip Count 1 Item Schematics ----------------- Imp. Remote Datajack | -7/Factory | Scanalyzed Combat Drone Bay | -7/Data Miner | Free Cld. Aerolev Unit | -7/Data Miner | Free Gravity Neutralizer | -7/Data Miner | Free Lgt. Regenerative Plating | -7/Data Miner | Free Imp. Heavy Machine Gun | -7/Data Miner | Free Imp. Component Analysis Suite | -7/Data Miner | Free Hvy. Treads | -7/Data Miner | Free Variable Charge Gun | -7/Data Miner | Free Fusion Compressor | -7/Data Miner | Free Imp. Launcher Guidance Computer | -7/Data Miner | Free Imp. System Guard | -7/Data Miner | Free HERF Cannon | -7/Data Miner | Free Robot Schematics ------------------ R-10 Processor | -7/Data Miner | Free H-55 Commando | -7/Data Miner | Free G-47 Trooper | -7/Data Miner | Free L-41 Fighter | -7/Data Miner | Free A-15 Conveyor | -7/Data Miner | Free Fabricated ------------ Nothing Alien Tech Used ----------------- None Achievements -------------- None Challenges ------------ None Game ------ Seed CatalystMetafiberField Manual? 0 Play Time 01:27:45 Cumulative 290.9 hours Start 2022.08.04 @ 16:55:34 End 2022.08.05 @ 23:39:59 Sessions 5 Manual Loads 0 Difficulty Rogue Special Mode None Game No. 144 Rogue 140 Adventurer 0 Explorer 4 Win Type - Total 16 Types 4/0/2/4/1/2/3/0/0 Lore% 77 Gallery% 83 Achievement% 75 Wizard Run 0 Options --------- ASCII 0 Keyboard 0 Movement Mouse Keybinds 0 Fullscreen 1 Font 18/SmallcapsGlow Map View 76x50 Tactical HUD 1 Map Filters NONE Filters NONE Steam 1 RUN: a2346185-8da7-403c-b98e-bc47e9c2a4b5